fUSD/lending_fUSD_20250204
["ID","MTS","AMOUNT","RATE_DAILY","PERIOD"]
[351612691,1738663832476,-500.0,8.766e-05,2]
[351612692,1738663832489,-500.0,8.766e-05,2]
[351612693,1738663832506,-500.0,8.766e-05,2]
[351612694,1738663832522,-500.0,8.766e-05,2]
[351612695,1738663832532,-500.0,8.766e-05,2]
[351612696,1738663832542,-500.0,8.766e-05,2]
[351612697,1738663832551,-649.9,8.766e-05,2]
[351612698,1738663832561,-500.0,8.766e-05,2]
[351612699,1738663832571,-713.33,8.766e-05,2]
[351612700,1738663832581,-471.25619451,8.766e-05,2]
[351612703,1738663832598,-28.74380549,8.766e-05,2]
[351612705,1738663832607,-278.56898451,8.766e-05,2]
[351612723,1738663838080,-221.43101549,8.766e-05,2]
[351612724,1738663838090,-500.0,8.766e-05,2]
[351612725,1738663838100,-500.0,8.766e-05,2]
[351612726,1738663838110,-1084.01,8.766e-05,2]
[351612727,1738663838120,-500.0,8.766e-05,2]
[351612728,1738663838129,-500.0,8.766e-05,2]
[351612729,1738663838139,-500.0,8.766e-05,2]
[351612730,1738663838148,-500.0,8.766e-05,2]
[351612731,1738663838158,-500.0,8.766e-05,2]
[351612732,1738663838169,-500.0,8.766e-05,2]
[351612733,1738663838179,-522.73,8.766e-05,2]
[351612734,1738663838188,-500.0,8.766e-05,2]
[351612735,1738663838197,-500.0,8.766e-05,2]
[351612736,1738663838208,-500.0,8.766e-05,2]
[351612737,1738663838218,-500.0,8.766e-05,2]
[351612738,1738663838230,-500.0,8.766e-05,2]
[351612739,1738663838239,-500.0,8.766e-05,2]
[351612740,1738663838249,-500.0,8.766e-05,2]
[351612741,1738663838259,-500.0,8.766e-05,2]
[351612742,1738663838268,-500.0,8.766e-05,2]
[351612743,1738663838279,-500.0,8.766e-05,2]
[351612744,1738663838289,-500.0,8.766e-05,2]
[351612745,1738663838299,-500.0,8.766e-05,2]
[351612746,1738663838310,-804.31,8.766e-05,2]
[351612747,1738663838320,-500.0,8.766e-05,2]
[351612748,1738663838330,-500.0,8.766e-05,2]
[351612749,1738663838339,-500.0,8.766e-05,2]
[351612750,1738663838349,-725.4,8.766e-05,2]
[351612751,1738663838358,-500.0,8.766e-05,2]
[351612752,1738663838368,-500.0,8.766e-05,2]
[351612753,1738663838377,-500.0,8.766e-05,2]
[351612754,1738663838387,-541.66,8.766e-05,2]
[351612755,1738663838397,-500.0,8.766e-05,2]
[351612756,1738663838406,-698.85,8.766e-05,2]
[351612757,1738663838416,-500.0,8.766e-05,2]
[351612758,1738663838427,-500.0,8.766e-05,2]
[351612759,1738663838437,-540.65,8.766e-05,2]
[351612760,1738663838447,-500.0,8.766e-05,2]
[351612761,1738663838456,-500.0,8.766e-05,2]
[351612762,1738663838465,-811.06,8.766e-05,2]
[351612763,1738663838475,-500.0,8.766e-05,2]
[351612764,1738663838485,-539.06,8.766e-05,2]
[351612765,1738663838494,-695.0,8.766e-05,2]
[351612766,1738663838504,-615.17531449,8.766e-05,2]
[351612767,1738663838513,-500.0,8.766e-05,2]
[351612768,1738663838523,-581.95,8.766e-05,2]
[351612769,1738663838534,-687.09,8.766e-05,2]
[351612770,1738663838543,-232.06146499,8.766e-05,2]
[351612771,1738663838553,-895.62,8.766e-05,2]
[351612772,1738663838562,-500.0,8.766e-05,2]
[351612773,1738663838573,-500.0,8.766e-05,2]
[351612775,1738663838582,-500.0,8.766e-05,2]
[351612776,1738663838592,-500.0,8.766e-05,2]
[351612777,1738663838602,-500.0,8.766e-05,2]
[351612778,1738663838612,-1276.71,8.766e-05,2]
[351612779,1738663838621,-500.0,8.766e-05,2]
[351612780,1738663838631,-500.0,8.766e-05,2]
[351612781,1738663838640,-500.0,8.766e-05,2]
[351612782,1738663838649,-500.0,8.766e-05,2]
[351612783,1738663838659,-530.33,8.766e-05,2]
[351612784,1738663838668,-500.0,8.766e-05,2]
[351612785,1738663838677,-500.0,8.766e-05,2]
[351612786,1738663838687,-500.0,8.766e-05,2]
[351612787,1738663838697,-500.0,8.766e-05,2]
[351612788,1738663838707,-500.0,8.766e-05,2]
[351612789,1738663838717,-557.57,8.766e-05,2]
[351612790,1738663838727,-500.0,8.766e-05,2]
[351612791,1738663838736,-500.0,8.766e-05,2]
[351612792,1738663838746,-1102.33,8.766e-05,2]
[351612793,1738663838756,-500.0,8.766e-05,2]
[351612794,1738663839059,-500.0,8.766e-05,2]
[351612795,1738663839069,-500.0,8.766e-05,2]
[351612796,1738663839078,-500.0,8.766e-05,2]
[351612797,1738663839088,-404.36571763,8.766e-05,2]
[351612798,1738663839098,-500.0,8.766e-05,2]
[351612799,1738663839107,-500.0,8.766e-05,2]
[351612800,1738663839116,-939.28,8.766e-05,2]
[351612801,1738663839126,-500.0,8.766e-05,2]
[351612802,1738663839136,-500.0,8.766e-05,2]
[351612803,1738663839145,-585.43,8.766e-05,2]
[351612804,1738663839159,-500.0,8.766e-05,2]
[351612805,1738663839168,-500.0,8.766e-05,2]
[351612806,1738663839178,-500.0,8.766e-05,2]
[351612807,1738663839188,-500.0,8.766e-05,2]
[351612808,1738663839198,-609.21,8.766e-05,2]
[351612809,1738663839208,-500.0,8.766e-05,2]
[351612810,1738663839223,-500.0,8.766e-05,2]
[351612811,1738663839233,-500.0,8.766e-05,2]
[351612812,1738663839243,-500.0,8.766e-05,2]
[351612813,1738663839252,-674.85,8.766e-05,2]
[351612814,1738663839263,-500.0,8.766e-05,2]
[351612815,1738663839275,-500.0,8.766e-05,2]
[351612816,1738663839286,-500.0,8.766e-05,2]
[351612817,1738663839296,-705.68,8.766e-05,2]
[351612818,1738663839307,-585.24,8.766e-05,2]
[351612819,1738663839317,-876.89,8.766e-05,2]
[351612820,1738663839329,-500.0,8.766e-05,2]
[351612821,1738663839339,-500.0,8.766e-05,2]
[351612822,1738663839349,-756.74,8.766e-05,2]
[351612823,1738663839359,-500.0,8.766e-05,2]
[351612824,1738663839368,-587.4,8.766e-05,2]
[351612825,1738663839378,-500.0,8.766e-05,2]
[351612826,1738663839388,-500.0,8.766e-05,2]
[351612827,1738663839399,-500.0,8.766e-05,2]
[351612828,1738663839408,-608.94,8.766e-05,2]
[351612829,1738663839417,-500.0,8.766e-05,2]
[351612830,1738663839427,-500.0,8.766e-05,2]
[351612831,1738663839436,-500.0,8.766e-05,2]
[351612832,1738663839445,-500.0,8.766e-05,2]
[351612833,1738663839455,-500.0,8.766e-05,2]
[351612834,1738663839465,-500.0,8.766e-05,2]
[351612835,1738663839474,-500.0,8.766e-05,2]
[351612836,1738663839484,-500.0,8.766e-05,2]
[351612837,1738663839494,-500.0,8.766e-05,2]
[351612838,1738663839504,-500.0,8.766e-05,2]
[351612839,1738663839514,-702.16,8.766e-05,2]
[351612840,1738663839524,-500.0,8.766e-05,2]
[351612841,1738663839537,-500.0,8.766e-05,2]
[351612842,1738663839547,-560.94,8.766e-05,2]
[351612843,1738663839557,-738.56,8.766e-05,2]
[351612844,1738663839567,-500.0,8.766e-05,2]
[351612845,1738663839576,-1041.79,8.766e-05,2]
[351612846,1738663839587,-500.0,8.766e-05,2]
[351612847,1738663839597,-954.63,8.766e-05,2]
[351612848,1738663839608,-500.0,8.766e-05,2]
[351612849,1738663839618,-500.0,8.766e-05,2]
[351612850,1738663839628,-500.0,8.766e-05,2]
[351612851,1738663839639,-500.0,8.766e-05,2]
[351612852,1738663839649,-500.0,8.766e-05,2]
[351612853,1738663839659,-500.0,8.766e-05,2]
[351612854,1738663839670,-500.0,8.766e-05,2]
[351612855,1738663839680,-500.0,8.766e-05,2]
[351612856,1738663839691,-538.4,8.766e-05,2]
[351612857,1738663839701,-424.76117072,8.766e-05,2]
[351612862,1738663840151,-75.23882928,8.766e-05,2]
[351612863,1738663840162,-538.67,8.766e-05,2]
[351612864,1738663840171,-500.0,8.766e-05,2]
[351612865,1738663840180,-1358.83,8.766e-05,2]
[351612866,1738663840190,-603.33,8.766e-05,2]
[351612867,1738663840199,-913.85,8.766e-05,2]
[351612868,1738663840209,-285.12930147,8.766e-05,2]
[351612869,1738663840218,-500.0,8.766e-05,2]
[351612870,1738663840228,-1032.87,8.766e-05,2]
[351612871,1738663840239,-500.0,8.766e-05,2]
[351612872,1738663840249,-623.16,8.766e-05,2]
[351612873,1738663840258,-730.608515,8.766e-05,2]
[351612874,1738663840268,-1042.62,8.766e-05,2]
[351612875,1738663840279,-658.27,8.766e-05,2]
[351612876,1738663840288,-931.44,8.766e-05,2]
[351612877,1738663840298,-941.68,8.766e-05,2]
[351612878,1738663840308,-588.9,8.766e-05,2]
[351612879,1738663840317,-624.45,8.766e-05,2]
[351612880,1738663840328,-711.176679,8.766e-05,2]
[351612881,1738663840337,-500.0,8.766e-05,2]
[351612882,1738663840348,-500.0,8.766e-05,2]
[351612883,1738663840358,-1095.22,8.766e-05,2]
[351612884,1738663840367,-642.58,8.766e-05,2]
[351612885,1738663840376,-500.0,8.766e-05,2]
[351612886,1738663840386,-762.22,8.766e-05,2]
[351612887,1738663840396,-500.0,8.766e-05,2]
[351612888,1738663840406,-843.19,8.766e-05,2]
[351612889,1738663840416,-1120.15,8.766e-05,2]
[351612890,1738663840426,-546.72,8.766e-05,2]
[351612891,1738663840435,-725.84882457,8.766e-05,2]
[351612892,1738663840530,-42.88117543,8.766e-05,2]
[351612893,1738663840541,-500.0,8.766e-05,2]
[351612894,1738663840550,-136.25934604,8.766e-05,2]
[351612895,1738663841049,-363.74065396,8.766e-05,2]
[351612896,1738663841058,-500.0,8.766e-05,2]
[351612897,1738663841067,-500.0,8.766e-05,2]
[351612898,1738663841077,-500.0,8.766e-05,2]
[351612899,1738663841086,-686.95,8.766e-05,2]
[351612900,1738663841096,-1116.55,8.766e-05,2]
[351612901,1738663841105,-516.9,8.766e-05,2]
[351612902,1738663841114,-1695.13,8.766e-05,2]
[351612903,1738663841123,-504.38,8.766e-05,2]
[351612904,1738663841133,-1362.16,8.766e-05,2]
[351612905,1738663841142,-726.62,8.766e-05,2]
[351612906,1738663841152,-500.0,8.766e-05,2]
[351612907,1738663841161,-500.0,8.766e-05,2]
[351612908,1738663841170,-500.0,8.766e-05,2]
[351612909,1738663841179,-1655.3,8.766e-05,2]
[351612910,1738663841189,-1247.07,8.766e-05,2]
[351612911,1738663841198,-723.42,8.766e-05,2]
[351612912,1738663841207,-558.15,8.766e-05,2]
[351612913,1738663841220,-634.7,8.766e-05,2]
[351612914,1738663841234,-3704.19,8.766e-05,2]
[351612915,1738663841243,-1391.41531005,8.766e-05,2]
[351612916,1738663841392,-966.67468995,8.766e-05,2]
[351612917,1738663841401,-359.98945844,8.766e-05,2]
[351612918,1738663841419,-140.01054156,8.766e-05,2]
[351612919,1738663841428,-500.0,8.766e-05,2]
[351612920,1738663841437,-1485.32,8.766e-05,2]
[351612921,1738663841447,-1383.15,8.766e-05,2]
[351612922,1738663841456,-417.98741363,8.766e-05,2]
[351612923,1738663841465,-500.0,8.766e-05,2]
[351612924,1738663841474,-560.45,8.766e-05,2]
[351612925,1738663841484,-1425.29,8.766e-05,2]
[351612926,1738663841493,-500.0,8.766e-05,2]
[351612927,1738663841503,-500.0,8.766e-05,2]
[351612928,1738663841512,-913.42,8.766e-05,2]
[351612929,1738663841522,-683.1,8.766e-05,2]
[351612930,1738663841531,-696.37,8.766e-05,2]
[351612931,1738663841540,-1109.0644448,8.766e-05,2]
[351612932,1738663841568,-145.5955552,8.766e-05,2]
[351612933,1738663841577,-1199.44,8.766e-05,2]
[351612934,1738663841587,-1135.87,8.766e-05,2]
[351612935,1738663841596,-1206.76,8.766e-05,2]
[351612936,1738663841605,-500.0,8.766e-05,2]
[351612937,1738663841614,-500.0,8.766e-05,2]
[351612938,1738663841624,-641.46,8.766e-05,2]
[351612939,1738663841633,-500.0,8.766e-05,2]
[351612940,1738663841642,-1194.43,8.766e-05,2]
[351612941,1738663841651,-500.0,8.766e-05,2]
[351612942,1738663841660,-715.44,8.766e-05,2]
[351612943,1738663841669,-500.0,8.766e-05,2]
[351612944,1738663841679,-500.0,8.766e-05,2]
[351612945,1738663841688,-512.01,8.766e-05,2]
[351612946,1738663841698,-1669.95,8.766e-05,2]
[351612947,1738663841707,-1000.8,8.766e-05,2]
[351612948,1738663841717,-603.14,8.767e-05,2]
[351612949,1738663841726,-747.35,8.767e-05,2]
[351612950,1738663841735,-738.27,8.767e-05,2]
[351612951,1738663841744,-1048.86,8.767e-05,2]
[351612952,1738663841754,-529.17,8.767e-05,2]
[351612953,1738663841763,-1159.52,8.767e-05,2]
[351612954,1738663841773,-500.0,8.767e-05,2]
[351612955,1738663841784,-1084.84,8.767e-05,2]
[351612956,1738663841793,-500.0,8.767e-05,2]
[351612957,1738663841803,-750.48,8.767e-05,2]
[351612958,1738663841812,-696.09,8.767e-05,2]
[351612959,1738663841823,-812.62,8.767e-05,2]
[351612960,1738663841832,-500.0,8.767e-05,2]
[351612961,1738663841842,-803.36,8.767e-05,2]
[351612962,1738663841851,-76.05174288,8.767e-05,2]
[351612963,1738663841863,-423.94825712,8.767e-05,2]
[351612964,1738663841872,-706.4,8.767e-05,2]
[351612965,1738663841881,-500.0,8.767e-05,2]
[351612966,1738663841890,-1016.92,8.767e-05,2]
[351612967,1738663841900,-500.0,8.767e-05,2]
[351612968,1738663841910,-500.0,8.767e-05,2]
[351612969,1738663841919,-455.95914607,8.767e-05,2]
[351612984,1738663843720,-267.30085393,8.767e-05,2]
[351612985,1738663843731,-500.0,8.767e-05,2]
[351612986,1738663843740,-348.33854152,8.767e-05,2]
[351613010,1738663846176,-128.70145848,8.767e-05,2]
[351613011,1738663846185,-500.0,8.767e-05,2]
[351613012,1738663846195,-150.0,8.77e-05,2]
[351613013,1738663846204,-438.52,8.77e-05,2]
[351613014,1738663846214,-150.0,8.77e-05,2]
[351613015,1738663846226,-1549.3,8.77e-05,2]
[351613016,1738663846236,-878.68,8.77e-05,2]
[351613017,1738663846245,-150.0,8.77e-05,2]
[351613018,1738663846254,-150.0,8.77e-05,2]
[351613019,1738663846264,-657.85,8.789e-05,2]
[351613020,1738663846273,-976.74,8.789e-05,2]
[351613021,1738663846282,-1909.55,8.789e-05,2]
[351613022,1738663846291,-883.96,8.789e-05,2]
[351613023,1738663846300,-994.03,8.789e-05,2]
[351613024,1738663846311,-672.33,8.789e-05,2]
[351613025,1738663846320,-1063.05,8.789e-05,2]
[351613026,1738663846330,-2334.86,8.789e-05,2]
[351613027,1738663846339,-500.0,8.789e-05,2]
[351613028,1738663846348,-854.36,8.789e-05,2]
[351613029,1738663846357,-1220.81,8.789e-05,2]
[351613030,1738663846366,-642.21,8.789e-05,2]
[351613031,1738663846375,-1623.93,8.789e-05,2]
[351613032,1738663846384,-1580.68,8.789e-05,2]
[351613033,1738663846393,-1252.95,8.789e-05,2]
[351613034,1738663846402,-500.0,8.789e-05,2]
[351613035,1738663846411,-1103.99,8.789e-05,2]
[351613036,1738663846420,-1159.29,8.789e-05,2]
[351613037,1738663846429,-500.0,8.789e-05,2]
[351613038,1738663846437,-1261.37,8.789e-05,2]
[351613039,1738663846447,-500.0,8.789e-05,2]
[351613040,1738663846456,-1310.43,8.789e-05,2]
[351613041,1738663846465,-518.95,8.789e-05,2]
[351613042,1738663846474,-621.37,8.789e-05,2]
[351613043,1738663846483,-753.46,8.789e-05,2]
[351613044,1738663846492,-627.69,8.789e-05,2]
[351613045,1738663846502,-500.0,8.789e-05,2]
[351613046,1738663846513,-743.26,8.789e-05,2]
[351613048,1738663846522,-639.16,8.789e-05,2]
[351613050,1738663846531,-500.0,8.789e-05,2]
[351613052,1738663846540,-500.0,8.789e-05,2]
[351613054,1738663846549,-500.0,8.789e-05,2]
[351613056,1738663846558,-500.0,8.79e-05,2]
[351613058,1738663846568,-500.0,8.79e-05,2]
[351613060,1738663846579,-712.17,8.79e-05,2]
[351613062,1738663846588,-500.0,8.79e-05,2]
[351613064,1738663846598,-500.0,8.79e-05,2]
[351613066,1738663846607,-500.0,8.79e-05,2]
[351613068,1738663846615,-500.0,8.79e-05,2]
[351613070,1738663846624,-500.0,8.79e-05,2]
[351613072,1738663846633,-500.0,8.79e-05,2]
[351613074,1738663846642,-500.0,8.79e-05,2]
[351613076,1738663846651,-500.0,8.79e-05,2]
[351613078,1738663846660,-500.0,8.79e-05,2]
[351613080,1738663846669,-500.0,8.79e-05,2]
[351613082,1738663846678,-500.0,8.79e-05,2]
[351613084,1738663846687,-726.64,8.79e-05,2]
[351613086,1738663846696,-703.82,8.79e-05,2]
[351613088,1738663846706,-741.95,8.79e-05,2]
[351613089,1738663846715,-500.0,8.79e-05,2]
[351613092,1738663846724,-500.0,8.79e-05,2]
[351613093,1738663846733,-500.0,8.79e-05,2]
[351613095,1738663846742,-500.0,8.79e-05,2]
[351613097,1738663846751,-730.26,8.79e-05,2]
[351613099,1738663846760,-500.0,8.79e-05,2]
[351613101,1738663846769,-500.0,8.79e-05,2]
[351613103,1738663846779,-500.0,8.79e-05,2]
[351613104,1738663846788,-529.47,8.79e-05,2]
[351613105,1738663846798,-582.66,8.79e-05,2]
[351613106,1738663846807,-500.0,8.79e-05,2]
[351613107,1738663846816,-500.0,8.79e-05,2]
[351613108,1738663846825,-500.0,8.79e-05,2]
[351613109,1738663846834,-500.0,8.79e-05,2]
[351613110,1738663846844,-500.0,8.79e-05,2]
[351613111,1738663846853,-500.0,8.79e-05,2]
[351613112,1738663846863,-717.87,8.79e-05,2]
[351613113,1738663846872,-500.0,8.79e-05,2]
[351613114,1738663846881,-500.0,8.79e-05,2]
[351613115,1738663846891,-500.0,8.79e-05,2]
[351613116,1738663846900,-500.0,8.79e-05,2]
[351613117,1738663846910,-500.0,8.79e-05,2]
[351613118,1738663846919,-500.84885072,8.79e-05,2]
[351613119,1738663846929,-500.0,8.79e-05,2]
[351613120,1738663846938,-500.0,8.79e-05,2]
[351613121,1738663846948,-500.0,8.79e-05,2]
[351613122,1738663846958,-501.21531937,8.79e-05,2]
[351613123,1738663846968,-500.0,8.79e-05,2]
[351613124,1738663846978,-876.63,8.79e-05,2]
[351613125,1738663846987,-596.55,8.79e-05,2]
[351613126,1738663846996,-500.0,8.79e-05,2]
[351613127,1738663847006,-516.98,8.79e-05,2]
[351613128,1738663847015,-500.0,8.79e-05,2]
[351613129,1738663847025,-500.0,8.79e-05,2]
[351613130,1738663847034,-500.0,8.79e-05,2]
[351613131,1738663847044,-500.0,8.79e-05,2]
[351613132,1738663847053,-500.0,8.79e-05,2]
[351613133,1738663847063,-500.0,8.79e-05,2]
[351613134,1738663847072,-696.01,8.79e-05,2]
[351613135,1738663847081,-500.0,8.79e-05,2]
[351613136,1738663847090,-500.0,8.79e-05,2]
[351613137,1738663847100,-500.0,8.79e-05,2]
[351613138,1738663847110,-500.0,8.79e-05,2]
[351613139,1738663847119,-500.0,8.79e-05,2]
[351613140,1738663847128,-500.0,8.79e-05,2]
[351613141,1738663847138,-500.0,8.79e-05,2]
[351613142,1738663847147,-586.96,8.79e-05,2]
[351613143,1738663847156,-500.0,8.79e-05,2]
[351613144,1738663847165,-500.0,8.79e-05,2]
[351613145,1738663847175,-660.71,8.79e-05,2]
[351613146,1738663847184,-567.08,8.79e-05,2]
[351613147,1738663847194,-500.0,8.79e-05,2]
[351613148,1738663847203,-500.0,8.79e-05,2]
[351613149,1738663847213,-500.0,8.79e-05,2]
[351613150,1738663847224,-500.0,8.79e-05,2]
[351613151,1738663847234,-699.84,8.79e-05,2]
[351613152,1738663847243,-500.0,8.79e-05,2]
[351613153,1738663847252,-500.0,8.79e-05,2]
[351613154,1738663847261,-500.0,8.79e-05,2]
[351613155,1738663847271,-697.02,8.79e-05,2]
[351613156,1738663847280,-573.05,8.79e-05,2]
[351613157,1738663847291,-500.0,8.79e-05,2]
[351613158,1738663847301,-500.0,8.79e-05,2]
[351613159,1738663847311,-500.0,8.79e-05,2]
[351613160,1738663847320,-798.04,8.79e-05,2]
[351613161,1738663847330,-500.0,8.79e-05,2]
[351613162,1738663847339,-500.0,8.79e-05,2]
[351613163,1738663847348,-500.0,8.79e-05,2]
[351613164,1738663847358,-985.19,8.79e-05,2]
[351613165,1738663847368,-939.55,8.79e-05,2]
[351613166,1738663847378,-500.0,8.79e-05,2]
[351613167,1738663847387,-984.29,8.79e-05,2]
[351613168,1738663847398,-500.0,8.79e-05,2]
[351613169,1738663847408,-578.04,8.79e-05,2]
[351613170,1738663847419,-611.18,8.79e-05,2]
[351613171,1738663847429,-500.0,8.79e-05,2]
[351613172,1738663847445,-500.0,8.79e-05,2]
[351613173,1738663847468,-500.0,8.79e-05,2]
[351613174,1738663847489,-500.0,8.79e-05,2]
[351613175,1738663847510,-836.27,8.79e-05,2]
[351613176,1738663847530,-500.0,8.79e-05,2]
[351613177,1738663847552,-500.0,8.79e-05,2]
[351613178,1738663847565,-500.0,8.79e-05,2]
[351613179,1738663847579,-667.07,8.79e-05,2]
[351613180,1738663847590,-500.0,8.79e-05,2]
[351613181,1738663847600,-500.0,8.79e-05,2]
[351613182,1738663847610,-500.0,8.79e-05,2]
[351613183,1738663847621,-500.0,8.79e-05,2]
[351613184,1738663847631,-861.33,8.79e-05,2]
[351613185,1738663847641,-900.32,8.79e-05,2]
[351613186,1738663847650,-810.43,8.79e-05,2]
[351613187,1738663847660,-547.45,8.79e-05,2]
[351613188,1738663847670,-500.0,8.79e-05,2]
[351613189,1738663847680,-500.0,8.79e-05,2]
[351613190,1738663847690,-1240.45,8.79e-05,2]
[351613191,1738663847700,-500.0,8.79e-05,2]
[351613192,1738663847710,-1468.9,8.79e-05,2]
[351613193,1738663847720,-500.0,8.79e-05,2]
[351613194,1738663847730,-500.0,8.79e-05,2]
[351613195,1738663847740,-500.0,8.79e-05,2]
[351613196,1738663847750,-500.0,8.79e-05,2]
[351613197,1738663847760,-999.87,8.79e-05,2]
[351613198,1738663847771,-669.49,8.79e-05,2]
[351613199,1738663847784,-500.0,8.79e-05,2]
[351613200,1738663847796,-1089.04,8.79e-05,2]
[351613201,1738663847807,-500.0,8.79e-05,2]
[351613202,1738663847817,-500.0,8.79e-05,2]
[351613203,1738663847827,-943.43,8.79e-05,2]
[351613204,1738663847838,-500.0,8.79e-05,2]
[351613205,1738663847849,-1379.89,8.79e-05,2]
[351613206,1738663847859,-500.0,8.79e-05,2]
[351613207,1738663847869,-558.45,8.79e-05,2]
[351613208,1738663847880,-1511.14,8.79e-05,2]
[351613209,1738663847890,-500.0,8.79e-05,2]
[351613210,1738663847900,-617.04,8.79e-05,2]
[351613211,1738663847910,-756.18,8.79e-05,2]
[351613212,1738663847920,-1652.09,8.79e-05,2]
[351613213,1738663847930,-808.45,8.79e-05,2]
[351613214,1738663847940,-1512.42,8.79e-05,2]
[351613215,1738663847950,-558.55,8.79e-05,2]
[351613216,1738663847959,-500.0,8.79e-05,2]
[351613217,1738663847969,-2354.5,8.79e-05,2]
[351613218,1738663847979,-703.97,8.79e-05,2]
[351613219,1738663847988,-500.0,8.79e-05,2]
[351613220,1738663847999,-500.0,8.79e-05,2]
[351613221,1738663848009,-500.0,8.79e-05,2]
[351613222,1738663848018,-500.0,8.79e-05,2]
[351613223,1738663848027,-830.61,8.79e-05,2]
[351613224,1738663848040,-500.0,8.79e-05,2]
[351613225,1738663848050,-1168.28,8.79e-05,2]
[351613226,1738663848060,-567.73,8.79e-05,2]
[351613227,1738663848069,-500.0,8.79e-05,2]
[351613228,1738663848079,-109.72387143,8.79e-05,2]
[351613229,1738663848093,-357.65766502,8.79e-05,2]
[351613230,1738663848105,-62.74846355,8.79e-05,2]
[351613231,1738663848114,-500.0,8.79e-05,2]
[351613232,1738663848124,-290.56844793,8.79e-05,2]
[351613233,1738663848134,-1131.67853324,8.79e-05,2]
[351613234,1738663848160,-716.21,8.766e-05,2]
[351613235,1738663848170,-248.35146676,8.79e-05,2]
[351613236,1738663848181,-500.0,8.79e-05,2]
[351613237,1738663848191,-2264.61,8.79e-05,2]
[351613238,1738663848201,-688.59,8.79e-05,2]
[351613239,1738663848211,-500.0,8.79e-05,2]
[351613240,1738663848224,-500.0,8.79e-05,2]
[351613241,1738663848243,-1081.21,8.79e-05,2]
[351613242,1738663848255,-500.0,8.79e-05,2]
[351613243,1738663848268,-500.0,8.79e-05,2]
[351613244,1738663848278,-500.0,8.79e-05,2]
[351613245,1738663848293,-1316.44,8.79e-05,2]
[351613246,1738663848304,-500.0,8.79e-05,2]
[351613247,1738663848316,-2393.99,8.79e-05,2]
[351613248,1738663848328,-500.0,8.79e-05,2]
[351613249,1738663848339,-1623.88,8.79e-05,2]
[351613250,1738663848350,-608.97,8.79e-05,2]
[351613251,1738663848361,-962.72,8.79e-05,2]
[351613252,1738663848372,-571.35,8.79e-05,2]
[351613253,1738663848383,-1548.78,8.79e-05,2]
[351613254,1738663848393,-555.89,8.79e-05,2]
[351613255,1738663848404,-2014.4,8.79e-05,2]
[351613256,1738663848414,-1076.76,8.79e-05,2]
[351613257,1738663848426,-500.0,8.79e-05,2]
[351613258,1738663848436,-2174.38,8.79e-05,2]
[351613259,1738663848446,-1059.98,8.79e-05,2]
[351613260,1738663848455,-500.0,8.79e-05,2]
[351613261,1738663848464,-500.0,8.79e-05,2]
[351613262,1738663848474,-1644.39,8.79e-05,2]
[351613263,1738663848484,-802.07,8.79e-05,2]
[351613264,1738663848494,-500.0,8.79e-05,2]
[351613265,1738663848503,-1654.98,8.79e-05,2]
[351613266,1738663848513,-1468.09,8.79e-05,2]
[351613267,1738663848523,-500.0,8.79e-05,2]
[351613268,1738663848533,-525.41,8.79e-05,2]
[351613269,1738663848545,-500.0,8.79e-05,2]
[351613270,1738663848555,-1542.39,8.79e-05,2]
[351613271,1738663848564,-539.0,8.798e-05,2]
[351613272,1738663848574,-2000.0,8.799e-05,2]
[351613273,1738663848584,-2645.06,8.799e-05,2]
[351613274,1738663848593,-1222.85,8.799e-05,2]
[351613275,1738663848603,-835.81,8.799e-05,2]
[351613276,1738663848613,-1806.05,8.799e-05,2]
[351613277,1738663848622,-1436.12,8.799e-05,2]
[351613278,1738663848632,-1288.85,8.799e-05,2]
[351613279,1738663848642,-1455.56,8.799e-05,2]
[351613280,1738663848651,-549.21,8.799e-05,2]